lending/lending_fUSD_20240507
["ID","MTS","AMOUNT","RATE_DAILY","PERIOD"]
[326537238,1715094647178,-501.856175,0.0001288,2]
[326537239,1715094647200,-176.7536553,0.0001288,2]
[326537240,1715094647211,-702.62338552,0.00012886,2]
[326537241,1715094647231,-1500.0,0.000129,2]
[326537242,1715094647264,-1500.0,0.000129,2]
[326537243,1715094647276,-924.52,0.000129,2]
[326537244,1715094647287,-409.16208673,0.00012915,2]
[326537245,1715094647303,-5707.88868582,0.00012915,2]
[326537246,1715094647317,-4589.16668298,0.00012966,2]
[326537247,1715094647332,-5551.89418728,0.00012978,2]
[326537248,1715094647344,-971.96302956,0.00012978,2]
[326537249,1715094647359,-326.10922385,0.00012978,2]
[326537250,1715094647375,-320.02810305,0.00012978,2]
[326537251,1715094647387,-355.81530773,0.00012978,2]
[326537252,1715094647398,-165.20489312,0.00012978,2]
[326537253,1715094647409,-155.50093805,0.00012978,2]
[326537254,1715094647428,-605.23885963,0.00012978,2]
[326537256,1715094647447,-5858.31717383,0.00012979,2]
[326537258,1715094647461,-192236.23564932,0.0001298,2]
[326537262,1715094647493,-263.8,0.0001298,2]
[326537264,1715094647505,-699.85307547,0.0001298,2]
[326537266,1715094647530,-110605.63006859,0.0001298,2]
[326537295,1715094656477,-3210.5,0.0001298,2]
[326537299,1715094656490,-3226.3,0.0001298,2]
[326537306,1715094656507,-775.4,0.0001298,2]
[326537311,1715094656520,-1603.05,0.0001298,2]
[326537321,1715094656547,-34191.5276385,0.0001298,2]
[326537322,1715094656560,-52794.09674568,0.0001298,2]
[326537327,1715094656572,-458.60294504,0.0001298,2]
[326538938,1715095835042,-155.0,0.00010665,2]
[326538941,1715095835052,-527.96204345,0.00010666,2]
[326538944,1715095835062,-157.50965258,0.00010666,2]
[326538946,1715095835071,-1062.35823973,0.00010667,2]
[326538951,1715095835081,-536.79102365,0.00010668,2]
[326538956,1715095835091,-331.13490455,0.00010668,2]
[326538961,1715095835101,-155.0,0.00010668,2]
[326538965,1715095835110,-1267.15064794,0.00010669,2]
[326538968,1715095835119,-320.00000025,0.0001067,2]
[326538971,1715095835131,-168.15026733,0.0001067,2]
[326538974,1715095835140,-300.0,0.00010672,2]
[326538975,1715095835149,-70.72973267,0.00010672,2]
[326538978,1715095835160,-79.27026733,0.00010672,2]
[326538980,1715095835169,-163.7001262,0.00010701,2]
[326538982,1715095835178,-535.66345342,0.00011382,2]
[326538984,1715095835190,-464.33654658,0.00011382,2]
[326538986,1715095835199,-163.70012619,0.00011427,2]
[326538988,1715095835208,-2689.74113622,0.00011484,2]
[326538990,1715095835219,-1304.74401751,0.00011484,2]
[326538992,1715095835231,-3655.23039409,0.00011484,2]
[326538994,1715095835242,-16240.28445218,0.00011484,2]
[326538996,1715095835251,-5338.44,0.00011507,2]
[326538998,1715095835261,-150.0,0.00011514,2]
[326539000,1715095835270,-195.6,0.00011583,2]
[326539002,1715095835278,-250.0,0.00011632,2]
[326539004,1715095835286,-167.84,0.00011655,2]
[326539006,1715095835296,-752.97083876,0.0001168,2]
[326539008,1715095835307,-167.84,0.00011741,2]
[326539010,1715095835316,-164.47,0.00011759,2]
[326539012,1715095835326,-1647.48,0.00011797,2]
[326539014,1715095835335,-167.84,0.00011828,2]
[326539015,1715095835344,-167.84,0.00011915,2]
[326539016,1715095835354,-167.84,0.00012002,2]
[326539017,1715095835363,-167.84,0.00012088,2]
[326539018,1715095835372,-178.25,0.00012148,2]
[326539019,1715095835530,-163.70012619,0.00012154,2]
[326539020,1715095835542,-167.84,0.00012175,2]
[326539021,1715095835553,-167.84,0.00012262,2]
[326539022,1715095835563,-1294.66870837,0.0001233,2]
[326539023,1715095835573,-1967.09324757,0.00012746,2]
[326539024,1715095835583,-170.89,0.00012768,2]
[326539025,1715095835592,-1000.0,0.00012805,2]
[326539026,1715095835602,-3010.2408,0.00012878,2]
[326539027,1715095835611,-1496.7777,0.0001288,2]
[326539028,1715095835623,-1279.4754,0.0001288,2]
[326539029,1715095835633,-8215.6476,0.0001288,2]
[326539030,1715095835643,-22734.9595,0.0001288,2]
[326539031,1715095835653,-2182.3444,0.0001288,2]
[326539032,1715095835664,-3072.5,0.0001288,2]
[326539033,1715095835673,-163.70012619,0.0001288,2]
[326539034,1715095835683,-7500.0,0.0001288,2]
[326539035,1715095835694,-785.24347818,0.0001288,2]
[326539036,1715095835703,-3667.81773391,0.0001288,2]
[326539037,1715095835713,-8145.72999995,0.0001288,2]
[326539038,1715095835722,-336.02607527,0.00012915,2]
[326539039,1715095835734,-233.8,0.0001297,2]
[326539040,1715095835743,-233.8,0.0001297,2]
[326539041,1715095835754,-233.8,0.0001297,2]
[326539042,1715095835763,-233.8,0.0001297,2]
[326539043,1715095835773,-233.8,0.0001297,2]
[326539044,1715095835783,-233.8,0.0001297,2]
[326539045,1715095835792,-8606.1161066,0.00012973,2]
[326539046,1715095835802,-3596.6404748,0.00012973,2]
[326539047,1715095835812,-155.09792859,0.00012978,2]
[326539048,1715095835822,-267.1614919,0.00012978,2]
[326539049,1715095835833,-3279.04154518,0.00012978,2]
[326539050,1715095835843,-684.85937317,0.00012978,2]
[326539051,1715095835853,-1489.18469227,0.00012978,2]
[326539052,1715095835863,-1741.08499363,0.00012978,2]
[326539053,1715095835874,-1727.53772828,0.00012978,2]
[326539054,1715095835885,-155.0,0.00012979,2]
[326539055,1715095835895,-2796.89901218,0.00012979,2]
[326539056,1715095835905,-310.39552389,0.00012979,2]
[326539057,1715095835915,-2191.64777523,0.00012979,7]
[326539058,1715095835926,-1003.13714954,0.00012979,2]
[326539059,1715095835935,-7330.4,0.00012979,2]
[326539060,1715095835945,-7449.4,0.0001298,2]
[326539061,1715095835954,-7370.48,0.0001298,2]
[326539062,1715095835964,-60788.1899548,0.0001298,2]
[326539063,1715095835977,-15054.4667413,0.0001298,2]
[326539064,1715095835989,-10137.88226977,0.0001298,2]
[326539065,1715095836001,-888.50890406,0.0001298,2]
[326539066,1715095836012,-3359.54880777,0.0001298,2]
[326539067,1715095836024,-533.73314647,0.0001298,2]
[326539080,1715095849880,-488.15026758,0.00010665,2]
[326539083,1715095849890,-155.0,0.00012969,2]
[326539086,1715095849900,-317.42423056,0.0001297,2]
[326539090,1715095849909,-233.8,0.0001297,2]
[326539092,1715095849919,-317.42423056,0.0001297,2]
[326539094,1715095849929,-233.8,0.0001297,2]
[326539096,1715095849940,-317.42423056,0.0001297,2]
[326539099,1715095849950,-233.8,0.0001297,2]
[326539102,1715095849959,-161.72421947,0.0001297,2]
[326539105,1715095849971,-72.07578053,0.0001297,2]
[326539109,1715095849980,-445.9860659,0.00012973,2]
[326539114,1715095849989,-175.50774889,0.00012979,2]
[326539119,1715095849999,-331.13490455,0.00012979,2]
[326539124,1715095850008,-529.12889712,0.00012979,2]
[326539128,1715095850017,-109051.7966716,0.0001298,2]
[326539133,1715095850029,-31049.6001606,0.0001298,2]
[326539143,1715095850052,-6973.70270135,0.0001298,2]
[326539148,1715095850064,-18933.60490722,0.0001298,2]
[326539354,1715097032399,-162.35623081,0.00010587,2]
[326539355,1715097032409,-445.60302228,0.00010588,2]
[326539357,1715097032419,-18.89265732,0.00010588,2]
[326539359,1715097032430,-136.10734268,0.00010588,2]
[326539362,1715097032439,-331.13490455,0.00010589,2]
[326539365,1715097032448,-409.10742902,0.00010589,2]
[326539368,1715097032458,-488.15026758,0.0001059,2]
[326539370,1715097032469,-155.0,0.00010592,2]
[326539372,1715097032481,-1716.28,0.00011142,2]
[326539374,1715097032491,-23900.0,0.00011149,2]
[326539376,1715097032500,-250.0,0.00011174,2]
[326539378,1715097032510,-399.08,0.00011174,2]
[326539380,1715097032519,-286.24,0.00011189,2]
[326539382,1715097032529,-1000.0,0.00011189,2]
[326539384,1715097032538,-299.99,0.00011189,2]
[326539386,1715097032547,-193.6,0.00011228,2]
[326539388,1715097032556,-499.99,0.00011228,2]
[326539390,1715097032566,-832.4,0.00011283,2]
[326539392,1715097032576,-200.0,0.00011284,2]
[326539394,1715097032585,-150.0,0.00011284,2]
[326539396,1715097032595,-325.01,0.00011287,2]
[326539398,1715097032604,-70242.56,0.00011374,2]
[326539400,1715097032613,-150.0,0.0001164,2]
[326539402,1715097032623,-150.47,0.00011671,2]
[326539403,1715097032633,-349.34656514,0.00011682,2]
[326539404,1715097032643,-150.47,0.00011718,2]
[326539405,1715097032652,-150.99,0.00011722,2]
[326539406,1715097032662,-150.47,0.00011764,2]
[326539407,1715097032671,-150.47,0.00011811,2]
[326539408,1715097032681,-150.47,0.00011858,2]
[326539409,1715097032690,-150.47,0.00011905,2]
[326539410,1715097032700,-912.31,0.00011941,2]
[326539411,1715097032709,-150.47,0.00011952,2]
[326539412,1715097032721,-150.47,0.00011998,2]
[326539413,1715097032731,-550.48,0.00012011,2]
[326539414,1715097032740,-330.17,0.00012041,2]
[326539415,1715097032749,-912.31,0.00012041,2]
[326539416,1715097032759,-150.47,0.00012045,2]
[326539417,1715097032768,-150.0,0.00012055,2]
[326539418,1715097032778,-150.47,0.00012092,2]
[326539419,1715097032787,-150.47,0.00012139,2]
[326539420,1715097032796,-912.31,0.00012141,2]
[326539421,1715097032806,-150.0,0.00012178,2]
[326539422,1715097032815,-150.47,0.00012186,2]
[326539423,1715097032824,-150.47,0.00012232,2]
[326539424,1715097032834,-1319.32,0.00012241,2]
[326539425,1715097032843,-414.71,0.00012241,2]
[326539426,1715097032853,-912.31,0.00012241,2]
[326539427,1715097032863,-829.42,0.00012241,2]
[326539428,1715097032872,-419.95,0.00012278,2]
[326539429,1715097032882,-419.95,0.00012278,2]
[326539430,1715097032954,-150.47,0.00012279,2]
[326539431,1715097032964,-1000.0,0.00012588,2]
[326539432,1715097032976,-1000.0,0.000128,2]
[326539433,1715097032986,-2500.0,0.000128,2]
[326539434,1715097032995,-7500.0,0.000128,2]
[326539435,1715097033004,-789.60468498,0.0001284,2]
[326539436,1715097033014,-251.95276684,0.00012848,2]
[326539437,1715097033025,-794.9730411,0.00012873,2]
[326539438,1715097033035,-173.13865332,0.0001288,2]
[326539439,1715097033044,-185.83894578,0.0001288,2]
[326539440,1715097033054,-193.22956144,0.0001288,2]
[326539441,1715097033064,-6179.35234144,0.0001288,2]
[326539442,1715097033073,-522.95868503,0.0001288,2]
[326539443,1715097033083,-479.53118646,0.0001288,2]
[326539444,1715097033092,-201.12727431,0.0001288,2]
[326539445,1715097033102,-3634.0104,0.0001289,2]
[326539446,1715097033112,-185.83894576,0.0001289,2]
[326539447,1715097033121,-186.19,0.0001289,2]
[326539448,1715097033130,-164.9837825,0.00012898,2]
[326539449,1715097033140,-682.60635956,0.00012898,2]
[326539450,1715097033149,-156.14457258,0.00012898,2]
[326539451,1715097033158,-193.9193088,0.00012898,2]
[326539452,1715097033168,-522.51870535,0.00012898,2]
[326539453,1715097033177,-155.0,0.00012898,2]
[326539454,1715097033186,-592.56,0.00012898,2]
[326539455,1715097033197,-394.21524118,0.00012898,2]
[326539456,1715097033207,-200.21998404,0.00012898,2]
[326539457,1715097033216,-156.663,0.00012898,2]
[326539458,1715097033229,-283.44852378,0.00012898,2]
[326539459,1715097033238,-155.58162898,0.00012898,2]
[326539460,1715097033247,-155.0,0.00012898,2]
[326539461,1715097033256,-155.25533383,0.00012898,2]
[326539462,1715097033266,-236.94401654,0.00012898,2]
[326539463,1715097033275,-161.53340203,0.00012899,2]
[326539464,1715097033284,-157.73671031,0.00012899,2]
[326539465,1715097033294,-2304.03954008,0.00012899,2]
[326539466,1715097033303,-9443.81477004,0.000129,2]
[326539467,1715097033316,-1240.78981057,0.000129,2]
[326539468,1715097033328,-6155.65818691,0.000129,2]
[326539469,1715097033339,-4427.30363913,0.000129,2]
[326539470,1715097033351,-5766.96427622,0.000129,2]
[326539471,1715097033362,-35461.81295496,0.000129,2]
[326539473,1715097038408,-155.0,0.00010586,2]
[326539476,1715097038419,-110378.55428806,0.000129,2]
[326539478,1715097038431,-500.0,0.000129,2]
[326539480,1715097038636,-3389.96530916,0.000129,2]
[326539481,1715097038647,-818.49731349,0.000129,2]
[326539482,1715097038661,-2729.29534009,0.000129,2]
[326539483,1715097038673,-12664.50000002,0.000129,2]
[326539484,1715097038685,-819.67673521,0.000129,2]
[326539486,1715097039902,-566.162403,0.00010586,2]
[326539488,1715097039913,-148.499729,0.000129,2]
[326539489,1715097042875,-294.08906027,0.000129,2]
[326539490,1715097042887,-1452.332788,0.000129,2]
[326539491,1715097042898,-1558.83434094,0.000129,2]
[326539492,1715097042911,-522.269661,0.000129,2]
[326539501,1715097044510,-408.65466947,0.00012899,2]
[326539504,1715097044520,-52227.14179693,0.000129,2]
[326539507,1715097044530,-150.0,0.000129,2]
[326539509,1715097044540,-1784.8587581,0.000129,2]
[326539511,1715097044550,-185.83894576,0.000129,2]
[326539513,1715097044559,-5808.54458,0.000129,2]
[326539515,1715097044569,-4725.11809052,0.00012966,2]
[326539517,1715097044579,-151.53,0.0001297,2]
[326539519,1715097044589,-151.53,0.0001297,2]
[326539521,1715097044599,-151.53,0.0001297,2]
[326539523,1715097044608,-151.53,0.0001297,2]
[326539525,1715097044618,-366.1188419,0.0001297,2]
[326539528,1715097044628,-151.53,0.0001297,2]
[326539530,1715097044637,-366.1188419,0.0001297,2]
[326539531,1715097044647,-151.53,0.0001297,2]
[326539532,1715097044657,-366.1188419,0.0001297,2]
[326539533,1715097044667,-151.53,0.0001297,2]
[326539534,1715097044677,-151.53,0.0001297,2]
[326539535,1715097044687,-151.53,0.0001297,2]
[326539536,1715097044697,-151.53,0.0001297,2]
[326539537,1715097044707,-151.53,0.0001297,2]
[326539538,1715097044718,-151.53,0.0001297,2]
[326539539,1715097044728,-151.53,0.0001297,2]
[326539540,1715097044739,-151.53,0.0001297,2]
[326539541,1715097044749,-151.53,0.0001297,2]
[326539542,1715097044759,-151.53,0.0001297,2]
[326539543,1715097044769,-151.53,0.0001297,2]
[326539544,1715097044779,-151.53,0.0001297,2]
[326539545,1715097044789,-151.53,0.0001297,2]
[326539546,1715097044799,-151.53,0.0001297,2]
[326539547,1715097044808,-151.53,0.0001297,2]
[326539548,1715097044819,-151.53,0.0001297,2]
[326539549,1715097044828,-151.53,0.0001297,2]
[326539550,1715097044838,-151.53,0.0001297,2]
[326539551,1715097044848,-151.53,0.0001297,2]
[326539552,1715097044859,-151.53,0.0001297,2]
[326539553,1715097044869,-151.53,0.0001297,2]
[326539554,1715097044879,-151.53,0.0001297,2]
[326539555,1715097044889,-151.53,0.0001297,2]
[326539556,1715097044898,-186.19,0.0001297,2]
[326539557,1715097044908,-186.19,0.0001297,2]
[326539558,1715097045047,-186.19,0.0001297,2]
[326539559,1715097045057,-151.53,0.00012971,2]
[326539560,1715097045067,-1790.2997182,0.00012973,2]
[326539561,1715097045076,-253.6236549,0.00012973,2]
[326539562,1715097045085,-151.0,0.00012973,2]
[326539563,1715097045095,-151.0,0.00012973,2]
[326539564,1715097045104,-151.0,0.00012973,2]
[326539565,1715097045114,-151.0,0.00012973,2]
[326539566,1715097045124,-691.563142,0.00012973,2]
[326539567,1715097045133,-691.563142,0.00012973,2]
[326539568,1715097045142,-11985.5036016,0.00012973,2]
[326539569,1715097045151,-44922.3670597,0.00012973,2]
[326539570,1715097045161,-1016.67009298,0.00012978,2]
[326539571,1715097045170,-505.10960777,0.00012978,2]
[326539572,1715097045180,-155.0,0.00012978,2]
[326539573,1715097045191,-305.72421467,0.00012978,2]
[326539574,1715097045203,-377.35579036,0.00012978,2]
[326539575,1715097045213,-788.18220101,0.00012978,2]
[326539576,1715097045223,-194.65788438,0.00012978,2]
[326539577,1715097045232,-521.73158779,0.00012978,2]
[326539578,1715097045243,-158.46331245,0.00012978,2]
[326539579,1715097045252,-3279.04154518,0.00012978,2]
[326539580,1715097045262,-155.0,0.00012978,2]
[326539581,1715097045271,-1021.6383433,0.00012978,3]
[326539582,1715097045281,-155.0,0.00012979,2]
[326539583,1715097045291,-150.01,0.00012979,2]
[326539584,1715097045300,-5858.31717383,0.00012979,2]
[326539585,1715097045310,-1021.63834331,0.00012979,3]
[326539586,1715097045319,-848408.44871383,0.0001298,2]
[326539587,1715097046117,-806.1100004,0.0001298,2]
[326539588,1715097046129,-686.000002,0.0001298,2]
[326539589,1715097046140,-11489.73377522,0.0001298,2]
[326539590,1715097046151,-13636.34428206,0.0001298,2]
[326539591,1715097046163,-2534.02923427,0.0001298,2]
[326539592,1715097046175,-814.22625206,0.0001298,2]
[326539597,1715097047397,-389.81725122,0.00012899,2]
[326539598,1715097047408,-3306.22157629,0.0001298,2]
[326539599,1715097047421,-19409.98507011,0.0001298,2]
[326539600,1715097047434,-1593.475,0.0001298,2]
[326539601,1715097047446,-750.52233814,0.0001298,2]
[326539602,1715097047458,-640.7472672,0.0001298,2]
[326539603,1715097047470,-757.25445626,0.0001298,2]
[326539604,1715097047482,-811.34832108,0.0001298,2]
[326539605,1715097047493,-378.79104645,0.0001298,2]
[326539606,1715097047505,-2030.81171266,0.0001298,2]
[326539607,1715097047516,-469.65,0.0001298,2]
[326539608,1715097047527,-389.63124367,0.0001298,2]
[326539609,1715097047538,-275.919,0.0001298,2]
[326539614,1715097049396,-331.13490455,0.00012978,2]
[326539615,1715097049407,-162.35623081,0.00012979,2]
[326539616,1715097049417,-6260.31799939,0.0001298,2]
[326539617,1715097049430,-44498.67768594,0.0001298,2]
[326539618,1715097049446,-5093.96812233,0.0001298,2]
[326539631,1715098232788,-155.0,0.00011354,2]
[326539633,1715098232798,-211.96612985,0.00011354,2]
[326539639,1715098233340,-233.63689243,0.00011354,2]
[326539641,1715098233350,-331.13490455,0.00011354,2]
[326539643,1715098233361,-364.37212277,0.00011354,2]
[326539645,1715098233370,-332.20962266,0.00011354,2]
[326539647,1715098233379,-150.0,0.00011355,2]
[326539649,1715098233390,-276.84135222,0.00011442,2]
[326539651,1715098233400,-1786.85788068,0.00011442,2]
[326539653,1715098233408,-2174.60213245,0.00011447,2]
[326539655,1715098233420,-21725.39786755,0.00011447,2]
[326539657,1715098233429,-424.43984853,0.00011629,2]
[326539659,1715098233438,-250.0,0.00011631,2]
[326539661,1715098233447,-150.0,0.00011663,2]
[326539663,1715098233456,-1500.0,0.00011676,2]
[326539665,1715098233465,-600.0,0.00011684,2]
[326539667,1715098233474,-323.17,0.00011721,2]
[326539669,1715098233483,-150.0,0.00011721,2]
[326539671,1715098233492,-412.54,0.00011721,2]
[326539673,1715098233501,-1847.03,0.00011726,2]
[326539675,1715098233511,-440.08,0.00011774,3]
[326539677,1715098233522,-2202.18635215,0.00011833,2]
[326539679,1715098233532,-1000.0,0.00012,2]
[326539681,1715098233541,-400.0,0.00012006,2]
[326539683,1715098233551,-150.99,0.00012006,2]
[326539685,1715098233560,-183.72,0.00012058,2]
[326539687,1715098233569,-419.95,0.00012078,2]
[326539689,1715098233578,-150.0,0.00012078,2]
[326539691,1715098233587,-419.95,0.00012078,2]
[326539692,1715098233596,-419.95,0.00012078,2]
[326539693,1715098233606,-150.0,0.00012078,2]
[326539694,1715098233615,-150.0,0.00012078,2]
[326539695,1715098233624,-419.95,0.00012178,2]
[326539696,1715098233633,-419.95,0.00012178,2]
[326539697,1715098233646,-150.0,0.00012178,2]
[326539698,1715098233656,-150.0,0.00012178,2]
[326539699,1715098233666,-150.0,0.00012178,2]
[326539700,1715098233675,-419.95,0.00012178,2]
[326539701,1715098233684,-150.0,0.00012178,2]
[326539702,1715098233693,-150.0,0.00012178,2]
[326539703,1715098233704,-523.05,0.00012178,2]
[326539704,1715098233713,-523.05,0.00012178,2]
[326539705,1715098233723,-1920.37243129,0.00012329,7]
[326539706,1715098233732,-419.95,0.00012678,2]
[326539707,1715098233741,-150.0,0.00012678,2]
[326539708,1715098233750,-419.95,0.00012678,2]
[326539709,1715098233759,-150.0,0.00012678,2]
[326539710,1715098233769,-370.0328,0.000127,2]
[326539711,1715098233779,-5262.6139,0.000128,2]
[326539712,1715098233788,-69044.71126977,0.000128,2]
[326539713,1715098233800,-503.38466522,0.000128,2]
[326539714,1715098238279,-4310.80059281,0.000128,2]
[326539738,1715098238496,-9583.92807317,0.000128,2]
[326539739,1715098238508,-19954.49409903,0.000128,2]
[326539740,1715098238518,-180.62503409,0.000128,2]
[326539741,1715098238529,-7500.0,0.000128,2]
[326539742,1715098238539,-762.66788104,0.000128,2]
[326539751,1715098238790,-180.62503406,0.00012827,2]
[326539752,1715098238824,-251.67041229,0.00012848,2]
[326539753,1715098238834,-180.62503406,0.00012853,2]
[326539754,1715098238843,-3705.3396795,0.0001288,2]
[326539755,1715098238853,-174.76024923,0.0001288,2]
[326539756,1715098238863,-500.0,0.0001288,2]
[326539757,1715098238873,-173.13865328,0.0001288,2]
[326539758,1715098238882,-172.11327141,0.0001288,2]
[326539759,1715098238892,-180.62503406,0.0001288,2]
[326539760,1715098238901,-193.22956143,0.0001288,2]
[326539761,1715098238911,-319.68745764,0.0001288,2]
[326539762,1715098238921,-982.19519497,0.0001288,2]
[326539763,1715098238931,-196.79509525,0.0001288,2]
[326539764,1715098238941,-174.76024922,0.000129,2]
[326539765,1715098238950,-419.95,0.000129,2]
[326539766,1715098238960,-150.0,0.000129,2]
[326539767,1715098238969,-419.95,0.000129,2]
[326539768,1715098238979,-419.95,0.000129,2]
[326539769,1715098238988,-419.95,0.000129,2]
[326539770,1715098238998,-72837.47812803,0.000129,2]
[326539771,1715098240389,-299.8197336,0.000129,2]
[326539774,1715098240401,-359.38098,0.000129,2]
[326539776,1715098240908,-186876.01224417,0.000129,2]
[326539778,1715098240919,-2930.325011,0.000129,2]
[326539779,1715098240931,-340.0090999,0.000129,2]
[326539780,1715098240943,-953.445,0.000129,2]
[326539781,1715098240955,-631.17512,0.000129,2]
[326539782,1715098240968,-77716.85204478,0.000129,2]
[326539783,1715098240979,-172.1132714,0.000129,2]
[326539784,1715098240998,-151.29,0.0001297,2]
[326539785,1715098241010,-151.29,0.0001297,2]
[326539786,1715098241020,-151.29,0.0001297,2]
[326539787,1715098241030,-151.29,0.0001297,2]
[326539788,1715098241041,-151.29,0.0001297,2]
[326539789,1715098241051,-151.29,0.0001297,2]
[326539790,1715098241062,-151.29,0.0001297,2]
[326539791,1715098241073,-151.29,0.0001297,2]
[326539792,1715098241082,-151.29,0.0001297,2]
[326539793,1715098241093,-151.29,0.0001297,2]
[326539794,1715098241103,-151.29,0.0001297,2]
[326539795,1715098241113,-151.29,0.0001297,2]
[326539796,1715098241124,-151.29,0.0001297,2]
[326539797,1715098241134,-151.29,0.0001297,2]
[326539798,1715098241144,-151.29,0.0001297,2]
[326539799,1715098241155,-151.29,0.0001297,2]
[326539800,1715098241165,-5084.66083756,0.00012978,2]
[326539801,1715098241175,-155.30871402,0.00012978,2]
[326539802,1715098241184,-210.10375186,0.00012978,2]
[326539803,1715098241194,-163.91951958,0.00012978,2]
[326539804,1715098241204,-161.21528224,0.00012978,2]
[326539805,1715098241215,-472.08870942,0.00012978,2]
[326539806,1715098241225,-320.31063503,0.00012978,2]
[326539807,1715098241235,-155.0,0.00012978,2]
[326539808,1715098241245,-155.5240566,0.00012978,2]
[326539809,1715098241255,-155.0,0.00012978,2]
[326539810,1715098241265,-392.55289161,0.00012978,2]
[326539811,1715098241275,-157.93501554,0.00012978,2]
[326539812,1715098241286,-256.93973791,0.00012978,2]
[326539813,1715098241296,-156.84310014,0.00012978,2]
[326539814,1715098241307,-194.58841859,0.00012978,2]
[326539815,1715098241321,-157.73866727,0.00012978,2]
[326539816,1715098241332,-305.08754642,0.00012978,2]
[326539817,1715098241342,-255.52678599,0.00012978,2]
[326539818,1715098241353,-266.38602155,0.00012978,2]
[326539819,1715098241363,-487.8595397,0.00012978,2]
[326539820,1715098241373,-1352.26248503,0.00012978,2]
[326539821,1715098241384,-206.10441614,0.00012978,2]
[326539822,1715098241394,-308.80368967,0.00012978,2]
[326539823,1715098241406,-37981.13828103,0.00012978,2]
[326539824,1715098241416,-1000.0,0.00012978,2]
[326539825,1715098241426,-299.93548575,0.00012979,2]
[326539826,1715098241436,-4079.99947356,0.00012979,2]
[326539827,1715098241446,-2569520.64812773,0.0001298,2]
[326539828,1715098241459,-535186.7475231,0.0001298,2]
[326539829,1715098241471,-677.86835436,0.0001298,2]
[326539830,1715098241484,-656.84113746,0.0001298,2]
[326539851,1715098243389,-357.69482547,0.00012078,2]
[326539853,1715098243601,-62.25517453,0.00012078,2]
[326539854,1715098243611,-330.03972924,0.0001298,2]
[326539855,1715098243622,-856.79557589,0.0001298,2]
[326539856,1715098243634,-17907.72454798,0.0001298,2]
[326539857,1715098243894,-150.0,0.00012078,2]
[326539858,1715098243904,-1397174.36559612,0.0001298,2]
[326539859,1715098243914,-4395.03703088,0.0001298,2]
[326539860,1715098243923,-155.0,0.0001298,2]
[326539861,1715098243933,-2004.3,0.0001298,2]
[326539862,1715098243942,-2000.0,0.0001298,2]
[326539863,1715098243951,-200.0,0.0001298,2]
[326539864,1715098243961,-5698.35445003,0.0001298,2]
[326539865,1715098243971,-200.0,0.0001298,2]
[326539866,1715098243980,-454.3501248,0.0001298,2]
[326539867,1715098243990,-2000.0,0.0001298,2]
[326539868,1715098243999,-151.0,0.0001298,2]
[326539869,1715098244009,-156.984023,0.0001298,2]
[326539870,1715098244019,-823.043669,0.0001298,2]
[326539871,1715098244030,-823.043669,0.0001298,2]
[326539872,1715098244040,-623.75104,0.0001298,2]
[326539873,1715098244049,-32152.4193442,0.0001298,2]
[326539874,1715098244059,-1645.484887,0.0001298,2]
[326539875,1715098244068,-1645.484887,0.0001298,2]
[326539876,1715098244078,-8578.4201295,0.0001298,2]
[326539877,1715098244088,-1531.5114284,0.0001298,2]
[326539878,1715098244097,-150.0,0.0001298,2]
[326539879,1715098244107,-150.0,0.0001298,2]
[326539880,1715098244116,-150.0,0.0001298,2]
[326539881,1715098244125,-150.0,0.0001298,2]
[326539882,1715098244135,-150.0,0.0001298,2]
[326539883,1715098244145,-150.0,0.0001298,2]
[326539884,1715098244155,-150.0,0.0001298,2]
[326539885,1715098244164,-150.0,0.0001298,2]
[326539886,1715098244174,-238.9163906,0.0001298,2]